bitfinex-derivatives/quotes_BTCF0:USTF0_20250711
["timestamp","ask_amount","ask_price","bid_price","bid_amount"]
[1752226682347,0.01598494,118830.0,118820.0,0.67858903]
[1752226683044,0.01598494,118830.0,118820.0,1.03938903]
[1752226683447,0.37678494,118830.0,118820.0,0.2608229]
[1752226683652,0.62756463,118830.0,118820.0,0.196323]
[1752226683950,0.63112374,118830.0,118820.0,0.196323]
[1752226684148,0.10207494,118830.0,118820.0,0.196323]
[1752226684348,0.63112374,118830.0,118820.0,0.196323]
[1752226684546,0.63112374,118830.0,118820.0,0.227023]
[1752226685652,0.168263,118820.0,118810.0,0.6412632]
[1752226685840,0.168263,118820.0,118810.0,0.2804658]
[1752226685841,0.76365,118820.0,118810.0,0.2804658]
[1752226686148,0.931913,118820.0,118810.0,0.2804658]
[1752226686340,0.1682771,118810.0,118800.0,0.63474033]
[1752226686545,0.1907671,118810.0,118800.0,0.60090033]
[1752226686740,0.2535671,118810.0,118800.0,0.55882813]
[1752226686946,0.08529,118810.0,118800.0,0.55882813]
[1752226687553,0.253567,118810.0,118800.0,0.55882813]
[1752226687947,0.08529,118810.0,118800.0,0.55882813]
[1752226688148,0.08529,118810.0,118800.0,0.58892813]
[1752226688446,1.03213313,118810.0,118800.0,0.00168343]
[1752226688646,0.614367,118810.0,118800.0,0.00168343]
[1752226688855,1.03213313,118810.0,118800.0,0.00168343]
[1752226689347,0.1682912,118800.0,118790.0,0.01760809]
[1752226689552,1.70566733,118800.0,118790.0,0.01760809]
[1752226690350,1.2879012,118800.0,118790.0,0.1683054]
[1752226691556,0.94240814,118800.0,118790.0,0.1963654]
[1752226691852,0.04816694,118800.0,118790.0,0.61413153]
[1752226692046,0.01626694,118800.0,118790.0,0.64663153]
[1752226692248,0.01626694,118800.0,118790.0,1.03793153]
[1752226692850,0.18455814,118800.0,118790.0,0.1963654]
[1752226693154,0.92083814,118800.0,118790.0,0.1963654]
[1752226693354,0.94164814,118800.0,118790.0,0.1963654]
[1752226693854,1.30244814,118800.0,118790.0,0.1963654]
[1752226695748,1.30244814,118800.0,118790.0,0.1683054]
[1752226695957,0.1891154,118790.0,118780.0,0.2805281]
[1752226696248,0.5810154,118790.0,118780.0,0.2805281]
[1752226696448,0.6132154,118790.0,118780.0,0.2805281]
[1752226697458,0.08411,118790.0,118780.0,0.2805281]
[1752226697658,0.6132154,118790.0,118780.0,0.2805281]
[1752226697858,0.2524154,118790.0,118780.0,0.2805281]
[1752226698057,0.08411,118790.0,118780.0,0.2805281]
[1752226698252,0.70162,118790.0,118780.0,1.05909423]
[1752226698456,0.70218043,118810.0,118800.0,0.1963512]
[1752226698652,0.94205024,118810.0,118800.0,0.1963512]
[1752226698853,1.30285024,118810.0,118800.0,0.1963512]
[1752226699358,1.30285024,118810.0,118800.0,0.02806]
[1752226699558,0.1682912,118800.0,118790.0,0.6727008]
[1752226699755,0.2516012,118800.0,118790.0,0.6727008]
[1752226700556,0.9205612,118800.0,118790.0,0.6727008]
[1752226701955,0.0321,118800.0,118790.0,1.09046693]
[1752226702159,1.04685184,118810.0,118800.0,0.1963512]
[1752226702462,0.88642894,118810.0,118800.0,0.64571733]
[1752226702862,0.81069273,118810.0,118800.0,0.64571733]
[1752226703456,0.75065184,118810.0,118800.0,0.64571733]
[1752226703656,0.25108894,118810.0,118800.0,0.1963512]
[1752226703963,0.08281184,118810.0,118800.0,0.61411733]
[1752226704158,0.74925184,118810.0,118800.0,0.1963512]
[1752226704363,0.85452646,118810.0,118800.0,0.1963512]
[1752226704658,0.18285624,118810.0,118800.0,0.97491733]
[1752226704858,0.74358162,118810.0,118800.0,1.03961733]
[1752226705062,0.74358162,118810.0,118800.0,0.6218512]
[1752226705063,0.668,118810.0,118800.0,0.6218512]
[1752226705264,0.668,118810.0,118800.0,0.67881733]
[1752226705566,0.74358162,118810.0,118800.0,0.67881733]
[1752226706158,0.77466162,118810.0,118800.0,1.03961733]
[1752226706365,0.77466162,118810.0,118800.0,1.04813907]
[1752226706561,0.77466162,118810.0,118800.0,1.03961733]
[1752226706865,0.94293862,118810.0,118800.0,1.03961733]
[1752226707266,0.867357,118810.0,118800.0,1.03961733]
[1752226707465,0.867357,118810.0,118800.0,0.6218512]
[1752226707765,0.867357,118810.0,118800.0,1.03961733]
[1752226707956,0.867357,118810.0,118800.0,1.00721733]
[1752226708155,0.75953569,118810.0,118800.0,1.00721733]
[1752226708362,0.09405569,118810.0,118800.0,1.03981733]
[1752226708571,0.75809569,118810.0,118800.0,1.03981733]
[1752226709468,0.69764,118810.0,118800.0,1.03981733]
[1752226710374,0.77322162,118810.0,118800.0,1.03981733]
[1752226710571,0.74162162,118810.0,118800.0,1.03981733]
[1752226710877,0.07758162,118810.0,118800.0,1.03981733]
[1752226711070,0.002,118810.0,118800.0,1.06538751]
[1752226711664,0.002,118810.0,118800.0,2.80707364]
[1752226711865,0.0624558,118810.0,118800.0,2.80707364]
[1752226712476,0.002,118810.0,118800.0,2.80707364]
[1752226712676,0.002,118810.0,118800.0,2.38930751]
[1752226714983,0.002,118810.0,118800.0,1.97154138]
[1752226715182,0.002,118810.0,118800.0,2.38930751]
[1752226716180,0.002,118810.0,118800.0,1.97154138]
[1752226716382,0.002,118810.0,118800.0,2.38930751]
[1752226718979,0.002,118810.0,118800.0,1.97154138]
[1752226719177,0.002,118810.0,118800.0,2.38930751]
[1752226719481,0.002,118810.0,118800.0,1.97154138]
[1752226719681,0.002,118810.0,118800.0,2.38930751]
[1752226721173,0.002,118810.0,118800.0,1.97154138]
[1752226721378,0.002,118810.0,118800.0,2.38930751]
[1752226721582,0.002,118810.0,118800.0,1.97154138]
[1752226721783,0.002,118810.0,118800.0,2.38930751]
[1752226723686,0.0336,118810.0,118800.0,2.38930751]
[1752226723982,0.05221,118810.0,118800.0,0.61502138]
[1752226724178,1.31663323,118810.0,118800.0,0.2136612]
[1752226724383,0.9320671,118810.0,118800.0,0.1682912]
[1752226725282,1.2928671,118810.0,118800.0,0.1682912]
[1752226725489,1.36844872,118810.0,118800.0,0.1682912]
[1752226726286,1.2928671,118810.0,118800.0,0.1682912]
[1752226726480,1.2928671,118810.0,118800.0,0.2134912]
[1752226726677,0.99253822,118810.0,118800.0,0.2134912]
[1752226726877,0.82426122,118810.0,118800.0,0.2134912]
[1752226727189,0.99253822,118810.0,118800.0,0.2134912]
[1752226727680,0.932067,118810.0,118800.0,0.2134912]
[1752226727878,0.99253822,118810.0,118800.0,0.2134912]
[1752226728078,0.932067,118810.0,118800.0,0.2134912]
[1752226728489,0.99253822,118810.0,118800.0,0.2134912]
[1752226729582,0.99255524,118810.0,118800.0,0.2134912]
[1752226729784,0.932067,118810.0,118800.0,0.2134912]
[1752226730083,0.932067,118810.0,118800.0,0.1682912]
[1752226730390,0.932067,118810.0,118800.0,0.1961812]
[1752226730887,0.932067,118810.0,118800.0,0.2134912]
[1752226731388,0.932067,118810.0,118800.0,1.40982346]
[1752226731389,0.0336,118810.0,118800.0,1.40982346]
[1752226731688,0.09409386,118810.0,118800.0,1.02505733]
[1752226732183,0.0336,118810.0,118800.0,2.33057733]
[1752226732784,0.09409386,118810.0,118800.0,2.33057733]
[1752226733385,0.09409386,118810.0,118800.0,1.9128112]
[1752226733693,0.220487,118810.0,118800.0,0.5742912]
[1752226733890,0.253687,118810.0,118800.0,0.99205733]
[1752226734293,0.274177,118810.0,118800.0,0.2134912]
[1752226734487,0.274177,118810.0,118800.0,0.99205733]
[1752226734488,0.81787386,118810.0,118800.0,0.99205733]
[1752226734786,0.79738386,118810.0,118800.0,0.63125733]
[1752226734991,0.96566086,118810.0,118800.0,0.99205733]
[1752226735192,0.905167,118810.0,118800.0,0.99205733]
[1752226735584,0.73689,118810.0,118800.0,0.99205733]
[1752226735784,0.905167,118810.0,118800.0,0.99205733]
[1752226736693,0.925367,118810.0,118800.0,0.5742912]
[1752226736890,0.925367,118810.0,118800.0,0.2134912]
[1752226737089,0.925367,118810.0,118780.0,0.5889188]
[1752226737090,0.1858253,118790.0,118780.0,0.5889188]
[1752226737288,0.8557453,118790.0,118780.0,0.40522]
[1752226737493,0.1858395,118780.0,118770.0,0.6997896]
[1752226737689,0.2700395,118780.0,118770.0,0.6997896]
[1752226737886,0.10172,118780.0,118770.0,1.11755573]
[1752226738092,0.75128,118780.0,118770.0,1.14042519]
[1752226738394,0.73092,118780.0,118770.0,1.14042519]
[1752226738593,0.031,118780.0,118770.0,1.11755573]
[1752226738789,0.71594518,118800.0,118790.0,0.2127254]
[1752226739002,0.74674518,118800.0,118790.0,0.99129153]
[1752226739188,0.69610518,118800.0,118790.0,0.99129153]
[1752226739386,0.69610518,118800.0,118790.0,0.63049153]
[1752226739387,0.88191638,118800.0,118790.0,0.63049153]
[1752226739588,0.91211638,118800.0,118790.0,0.63049153]
[1752226739797,0.91171638,118800.0,118790.0,0.63049153]
[1752226739993,0.74342518,118800.0,118790.0,0.63049153]
[1752226740190,1.35320679,118800.0,118790.0,0.2127254]
[1752226740894,0.99240679,118800.0,118790.0,0.2127254]
[1752226741494,1.35320679,118800.0,118790.0,0.2127254]
[1752226741688,0.99240679,118800.0,118790.0,0.2127254]
[1752226741895,1.29271638,118800.0,118790.0,0.2127254]
[1752226742292,0.93191638,118800.0,118790.0,0.2127254]
[1752226742492,1.29271638,118800.0,118790.0,0.2127254]
[1752226742694,0.002,118810.0,118790.0,1.52618511]
[1752226742888,0.002,118810.0,118800.0,1.44144346]
[1752226743090,0.002,118810.0,118800.0,1.45461346]
[1752226743295,0.002,118810.0,118800.0,1.03684733]
[1752226743499,0.002,118810.0,118800.0,1.45461346]
[1752226743794,0.002,118810.0,118800.0,1.03684733]
[1752226744802,0.002,118810.0,118800.0,0.6190812]
[1752226745190,0.002,118810.0,118800.0,1.03684733]
[1752226745398,0.002,118810.0,118800.0,1.68356733]
[1752226745701,0.002,118810.0,118800.0,1.03684733]
[1752226745902,0.002,118810.0,118800.0,1.68336733]
[1752226749403,0.002,118810.0,118800.0,1.2656012]
[1752226749605,0.002,118810.0,118800.0,1.68112733]
[1752226749800,0.002,118810.0,118800.0,1.03684733]
[1752226750005,0.01952,118810.0,118800.0,0.62948603]
[1752226750307,0.01952,118810.0,118800.0,1.02367733]
[1752226750503,0.05172,118810.0,118800.0,1.02367733]
[1752226751205,0.05172,118810.0,118800.0,1.05597733]
[1752226751406,0.002,118810.0,118800.0,1.05597733]
[1752226751607,0.002,118810.0,118800.0,1.47374346]
[1752226751901,0.465123,118840.0,118830.0,0.2126687]
[1752226751902,0.04952,118840.0,118830.0,0.2126687]
[1752226752106,0.08152,118840.0,118830.0,0.99123483]
[1752226752297,0.04952,118840.0,118830.0,2.27895483]
[1752226752501,0.04952,118840.0,118830.0,2.31175483]
[1752226752701,0.00276198,118850.0,118840.0,0.2126545]
[1752226753006,0.10527462,118880.0,118870.0,0.1681921]
[1752226753208,0.10527462,118880.0,118870.0,2.60928826]
[1752226753401,0.2021654,118890.0,118880.0,0.1681779]
[1752226753706,0.2021654,118890.0,118880.0,0.97343403]
[1752226753707,0.034,118890.0,118880.0,0.97343403]
[1752226753904,0.034,118890.0,118880.0,1.00623403]
[1752226754296,0.002,118890.0,118880.0,1.00623403]
[1752226754497,0.10772067,118890.0,118880.0,1.03913403]
[1752226754910,0.10766711,118890.0,118880.0,0.6213679]
[1752226755104,0.10766711,118890.0,118880.0,1.03913403]
[1752226755302,0.002,118890.0,118880.0,1.03913403]
[1752226755497,0.002,118890.0,118880.0,1.20736603]
[1752226755707,0.10566711,118910.0,118900.0,0.1948396]
[1752226755909,0.10566711,118910.0,118900.0,1.8545596]
[1752226755910,0.27380261,118910.0,118900.0,1.8545596]
[1752226756104,0.2295355,118910.0,118900.0,0.5556396]
[1752226756403,0.0614,118910.0,118900.0,0.5556396]
[1752226756616,0.2295355,118910.0,118900.0,0.5556396]
[1752226756808,0.0614,118910.0,118900.0,0.5556396]
[1752226757114,0.28976374,118910.0,118900.0,0.5556396]
[1752226757507,0.0614,118910.0,118900.0,0.5556396]
[1752226758013,0.0305,118910.0,118900.0,1.00430573]
[1752226758607,0.2011214,118920.0,118910.0,0.1681355]
[1752226758812,0.2316214,118920.0,118910.0,0.5556255]
[1752226759012,0.67158753,118920.0,118910.0,0.1948255]
[1752226759208,0.73165546,118920.0,118910.0,0.1948255]
[1752226759813,1.38085546,118920.0,118910.0,0.1948255]
[1752226760007,0.96288933,118920.0,118910.0,0.1948255]
[1752226760204,1.38065546,118920.0,118910.0,0.1948255]
[1752226760410,0.0222,118910.0,118900.0,0.02669]
[1752226760708,0.1903497,118900.0,118890.0,0.5556538]
[1752226760908,1.25703583,118900.0,118890.0,0.5556538]
[1752226761108,0.73182,118900.0,118890.0,0.5556538]
[1752226761411,0.0160891,118920.0,118910.0,0.1681355]
[1752226761602,0.0461891,118920.0,118910.0,1.33419163]
[1752226761806,0.0461891,118920.0,118910.0,0.9483255]
[1752226762312,0.0461891,118920.0,118910.0,1.36609163]
[1752226762507,0.0461891,118920.0,118910.0,1.39909163]
[1752226762809,1.44462373,118920.0,118900.0,0.42059537]
[1752226763013,0.2510355,118910.0,118900.0,0.63078147]
[1752226763204,0.66880163,118910.0,118900.0,0.3608]
[1752226763404,0.1903496,118900.0,118890.0,0.38749]
[1752226763608,1.31925573,118900.0,118890.0,0.5556538]
[1752226763809,1.68005573,118900.0,118890.0,0.02669]
[1752226764005,0.1681638,118890.0,118880.0,0.29025945]
[1752226764206,0.2540638,118890.0,118880.0,0.20617195]
[1752226764412,0.67182993,118890.0,118880.0,0.20618265]
[1752226765208,1.04888502,118890.0,118880.0,0.01131475]
[1752226765414,1.21711702,118890.0,118880.0,0.01131475]
[1752226765716,0.1976021,118870.0,118860.0,0.04979801]
[1752226765917,0.8472821,118870.0,118860.0,0.21800421]
[1752226766119,0.8803821,118870.0,118860.0,0.21800421]
[1752226767314,0.8803821,118870.0,118860.0,0.57880421]
[1752226767512,0.8803821,118870.0,118860.0,0.01764801]
[1752226767710,1.29814823,118870.0,118860.0,0.01764801]
[1752226768111,1.29814823,118870.0,118860.0,0.18585421]
[1752226768311,1.29814823,118870.0,118860.0,0.01764801]
[1752226768718,1.33064823,118870.0,118860.0,0.01764801]
[1752226768915,1.33064823,118870.0,118860.0,0.18585421]
[1752226769111,0.68096823,118870.0,118860.0,0.18585421]
[1752226769313,0.9113621,118870.0,118860.0,0.21800421]
[1752226769716,0.9113621,118870.0,118860.0,0.18585421]
[1752226769916,1.32912823,118870.0,118860.0,0.18585421]
[1752226770219,0.9113621,118870.0,118860.0,0.18585421]
[1752226770810,1.32912823,118870.0,118860.0,0.18585421]
[1752226771015,1.2721621,118870.0,118860.0,0.18585421]
[1752226771616,0.9113621,118870.0,118860.0,0.18585421]
[1752226772913,1.2721621,118870.0,118860.0,0.18585421]
[1752226773911,0.9113621,118870.0,118860.0,0.18585421]
[1752226774116,1.32912823,118870.0,118860.0,0.18585421]
[1752226774319,1.32912823,118870.0,118860.0,0.21800421]
[1752226774819,1.68992823,118870.0,118860.0,0.21800421]
[1752226775014,0.1976162,118860.0,118850.0,0.03215]
[1752226775313,0.21379176,118850.0,118840.0,0.00168286]
[1752226775514,0.63759176,118850.0,118840.0,0.00168286]
[1752226775715,1.87040589,118850.0,118840.0,0.00168286]
[1752226775913,0.1682487,118830.0,118820.0,0.03215]
[1752226776118,0.1682628,118820.0,118810.0,0.39295]
[1752226776312,0.2587328,118820.0,118810.0,0.561227]
[1752226778520,0.2587328,118820.0,118810.0,0.592127]
[1752226778921,0.05907,118820.0,118810.0,0.592127]
[1752226779122,0.8436628,118820.0,118810.0,0.592127]
[1752226779317,0.8436628,118820.0,118810.0,0.622127]
[1752226779518,0.1682548,118830.0,118820.0,0.2004128]
[1752226779827,0.8424048,118830.0,118820.0,0.03215]
[1752226780118,0.8424048,118830.0,118810.0,0.6132014]
[1752226780119,0.1682628,118820.0,118810.0,0.6785516]
[1752226780313,0.2010628,118820.0,118810.0,0.6785516]
[1752226780517,0.2299328,118820.0,118810.0,0.6785516]
[1752226780825,0.06167,118820.0,118810.0,0.6785516]
[1752226781019,0.2010628,118820.0,118810.0,0.7085516]
[1752226781216,0.1682628,118820.0,118810.0,0.7085516]
[1752226781614,0.2313593,118830.0,118820.0,0.2004128]
[1752226781817,0.8134087,118830.0,118820.0,0.2004128]
[1752226782121,0.8134087,118830.0,118820.0,0.2636128]
[1752226782316,0.8134087,118830.0,118820.0,0.6244128]
[1752226782623,0.8422787,118830.0,118820.0,0.2636128]
[1752226782810,0.8735787,118830.0,118820.0,0.2636128]
[1752226783322,0.8735787,118830.0,118820.0,0.2336128]
[1752226783516,0.9060787,118830.0,118820.0,0.2336128]
[1752226784119,0.9266487,118830.0,118820.0,0.2545428]
[1752226785716,0.02057,118830.0,118820.0,0.6153428]
[1752226785924,0.66361,118830.0,118820.0,1.06510893]
[1752226786619,1.4118988,118850.0,118840.0,0.2213145]
[1752226786922,2.0544988,118850.0,118840.0,0.2213145]
[1752226787216,2.4152988,118850.0,118840.0,0.2213145]
[1752226787421,1.75731145,118850.0,118840.0,0.2538145]
[1752226787621,2.39979145,118850.0,118840.0,0.2858145]
[1752226788215,2.03899145,118850.0,118840.0,0.2858145]
[1752226788814,0.01615823,118880.0,118840.0,2.57886413]
[1752226789014,0.65867823,118880.0,118870.0,0.2003421]
[1752226789219,0.65867823,118880.0,118870.0,0.2641421]
[1752226789723,0.01615823,118880.0,118870.0,0.6249421]
[1752226790125,0.65847823,118880.0,118870.0,0.6249421]
[1752226790321,0.82665613,118880.0,118870.0,0.2641421]
[1752226790524,0.82665613,118880.0,118870.0,0.6249421]
[1752226791020,0.82665613,118880.0,118870.0,0.2641421]
[1752226791725,0.65847823,118880.0,118870.0,0.6249421]
[1752226791917,0.01615823,118880.0,118870.0,1.04270823]
[1752226792122,0.65791823,118880.0,118870.0,0.6249421]
[1752226792720,0.01615823,118880.0,118870.0,1.04270823]
[1752226794425,0.01615823,118880.0,118870.0,1.21094823]
[1752226795027,0.01615823,118880.0,118870.0,1.04270823]
[1752226795418,0.22846139,118890.0,118880.0,0.1681779]
[1752226795419,0.01825509,118890.0,118880.0,0.1681779]
[1752226795631,1e-07,118890.0,118880.0,2.32426403]
[1752226796632,1e-07,118890.0,118880.0,1.04350403]
[1752226799031,1e-07,118890.0,118880.0,1.21173603]
[1752226799427,0.33096396,118920.0,118910.0,0.1681355]
[1752226799428,0.21440216,118920.0,118910.0,0.1681355]
[1752226799633,1.4785862,118930.0,118920.0,0.1995814]
[1752226799833,2.1470662,118930.0,118920.0,0.1995814]
[1752226800334,2.105036,118930.0,118920.0,0.1995814]
[1752226800530,2.465836,118930.0,118920.0,0.1995814]
[1752226800730,2.465836,118930.0,118920.0,0.19625017]
[1752226800928,0.1970614,118920.0,118910.0,0.2521859]
[1752226801129,0.67802753,118920.0,118910.0,0.2521859]
[1752226801330,0.80412463,118920.0,118910.0,0.1681355]
[1752226801632,0.82865344,118920.0,118910.0,0.1681355]
[1752226801834,0.1893455,118910.0,118900.0,0.6324405]
[1752226802033,0.9187255,118910.0,118900.0,0.6324405]
[1752226802229,0.9187255,118910.0,118900.0,0.2716405]
[1752226802230,1.2795255,118910.0,118900.0,0.2716405]
[1752226802832,1.2795255,118910.0,118900.0,0.3031005]
[1752226803033,1.69729163,118910.0,118900.0,0.3031005]
[1752226803534,1.2795255,118910.0,118900.0,0.3031005]
[1752226804032,0.9180455,118910.0,118900.0,0.3031005]
[1752226804432,1.75174473,118910.0,118900.0,0.1681496]
[1752226804628,1.79378163,118910.0,118900.0,0.1681496]
[1752226805333,1.79378163,118910.0,118880.0,0.7076688]
[1752226805334,0.2183138,118890.0,118880.0,0.7076688]
[1752226805530,0.8543538,118890.0,118880.0,0.3468688]
[1752226805725,0.9181538,118890.0,118880.0,0.3468688]
[1752226806635,1.2789538,118890.0,118880.0,0.3048245]
[1752226806933,1.69671993,118890.0,118880.0,0.1698602]
[1752226807334,1.7126924,118890.0,118880.0,0.0016823]
[1752226807531,1.8809244,118890.0,118880.0,0.1698602]
[1752226808431,1.46315827,118890.0,118880.0,0.1698602]
[1752226808636,1.8809244,118890.0,118880.0,0.1698602]
[1752226808832,1.8809244,118890.0,118880.0,0.0016823]
[1752226809032,1.46315827,118890.0,118880.0,0.1698602]
[1752226809233,1.8809244,118890.0,118880.0,0.0016823]
[1752226809935,0.1681779,118880.0,118870.0,0.168181]
[1752226810134,0.69739403,118880.0,118870.0,0.168181]
[1752226810738,0.1894021,118870.0,118860.0,0.72364885]
[1752226811042,0.9151221,118870.0,118860.0,0.72364885]
[1752226811234,0.9151221,118870.0,118860.0,0.7060334]
[1752226811431,0.93131612,118870.0,118860.0,0.7060334]
[1752226812542,0.2183562,118860.0,118850.0,0.03146]
[1752226812836,0.1894304,118850.0,118840.0,0.34696446]
[1752226813041,0.2822704,118850.0,118840.0,0.26285006]
[1752226813230,0.68893,118850.0,118840.0,1.04141619]
[1752226813435,0.8571504,118850.0,118840.0,0.68815006]
[1752226813636,0.8571504,118850.0,118840.0,1.10591619]
[1752226813840,0.8571504,118850.0,118840.0,0.74511619]
[1752226814033,0.8860904,118850.0,118840.0,0.26285006]
[1752226814237,1.2783904,118850.0,118840.0,0.03314286]
[1752226814438,1.71197705,118850.0,118840.0,0.00168286]
[1752226815740,1.71197705,118850.0,118820.0,0.6220097]
[1752226815741,0.2175287,118830.0,118820.0,0.6220097]
[1752226815946,1.27033483,118830.0,118820.0,0.6220097]
[1752226816159,1.33243483,118830.0,118820.0,0.6220097]
[1752226817041,1.34863037,118830.0,118820.0,0.6220097]
[1752226817242,0.93062424,118830.0,118820.0,0.6220097]
[1752226817437,0.1682629,118820.0,118810.0,0.6326324]
[1752226817640,0.66610903,118820.0,118810.0,0.6220246]
[1752226817853,0.69740903,118820.0,118810.0,0.2191568]
[1752226818051,0.69740903,118820.0,118810.0,0.05089]
[1752226818540,1.33188903,118820.0,118810.0,0.05089]
[1752226818740,1.33188903,118820.0,118800.0,0.62372543]
[1752226818741,0.23346461,118810.0,118800.0,0.62372543]
[1752226818944,0.29826461,118810.0,118800.0,0.62372543]
[1752226819538,0.29826461,118810.0,118800.0,0.26292543]
[1752226819744,0.29826461,118810.0,118800.0,0.22085273]
[1752226819938,0.71603074,118810.0,118800.0,0.22085273]
[1752226820143,0.71603074,118810.0,118800.0,0.22086463]
[1752226820338,0.71603074,118810.0,118800.0,0.05257343]
[1752226820538,0.71603074,118810.0,118800.0,0.22086463]
[1752226820948,0.29826461,118810.0,118800.0,0.22086463]
[1752226821246,0.71603074,118810.0,118800.0,0.22086463]
[1752226821443,0.71603074,118810.0,118800.0,0.05257343]
[1752226821637,0.71603074,118810.0,118800.0,0.00168343]
[1752226822245,0.29826461,118810.0,118800.0,0.00168343]
[1752226822441,0.71603074,118810.0,118800.0,0.00168343]
[1752226822838,1.07683074,118810.0,118800.0,0.00168343]
[1752226823039,1.24517474,118810.0,118800.0,0.00168343]
[1752226823539,1.24517474,118810.0,118800.0,0.18940463]
[1752226823540,0.29826461,118810.0,118800.0,0.18940463]
[1752226823741,0.93130461,118810.0,118800.0,0.22086463]
[1752226824040,1.29210461,118810.0,118800.0,0.16997463]
[1752226824440,1.70987074,118810.0,118800.0,0.16997463]
[1752226824849,1.29210461,118810.0,118800.0,0.16997463]
[1752226825044,1.70987074,118810.0,118800.0,0.16997463]
[1752226825244,1.70987074,118810.0,118800.0,0.19969463]
[1752226825545,1.66059074,118810.0,118800.0,0.16997463]
[1752226826248,1.66059074,118810.0,118800.0,0.00168343]
[1752226827849,1.66059074,118810.0,118800.0,0.16997463]
[1752226828340,1.66059074,118810.0,118800.0,0.00168343]
[1752226828544,1.66059074,118810.0,118800.0,0.16997463]
[1752226828944,1.66059074,118810.0,118800.0,0.00168343]
[1752226829145,1.24282461,118810.0,118800.0,0.00168343]
[1752226829344,1.66059074,118810.0,118800.0,0.00168343]
[1752226829951,0.1683054,118790.0,118780.0,0.27764085]
[1752226830157,1.57927153,118790.0,118780.0,0.27764085]
[1752226830450,0.1683195,118780.0,118770.0,0.7164689]
[1752226831450,0.1683195,118780.0,118770.0,0.78403807]
[1752226832853,0.1683195,118780.0,118770.0,0.69987327]
[1752226833053,0.61878563,118780.0,118770.0,0.59670287]
[1752226833354,0.1683337,118770.0,118760.0,0.5943305]
[1752226833657,1.25099983,118770.0,118760.0,0.5943305]
[1752226834152,0.8332337,118770.0,118760.0,0.5943305]
[1752226835849,0.8332337,118770.0,118760.0,0.66015054]
[1752226836857,0.84901911,118770.0,118760.0,0.66015054]
[1752226837056,1.20981911,118770.0,118760.0,0.13100404]
[1752226837250,1.20981911,118770.0,118760.0,0.29935194]
[1752226837655,1.20981911,118770.0,118760.0,0.032884]
[1752226837859,1.66078524,118770.0,118760.0,0.001684]
[1752226838256,1.66078524,118770.0,118760.0,0.1700319]
[1752226838455,1.66078524,118770.0,118760.0,0.001684]
[1752226840563,1.24141911,118770.0,118760.0,0.1700319]
[1752226840761,1.65918524,118770.0,118760.0,0.001684]
[1752226840962,1.65918524,118770.0,118760.0,0.1700319]
[1752226841261,1.65918524,118770.0,118760.0,0.001684]
[1752226842055,1.24141911,118770.0,118760.0,0.001684]
[1752226842251,1.65918524,118770.0,118760.0,0.001684]
[1752226843663,1.82758524,118770.0,118760.0,0.001684]
[1752226844163,0.1683762,118740.0,118730.0,0.57673823]
[1752226844356,1.2320124,118740.0,118730.0,0.391]
[1752226844557,1.2652124,118740.0,118730.0,0.4218]
[1752226844753,1.2652124,118740.0,118730.0,0.5901904]
[1752226845053,1.2652124,118740.0,118730.0,0.4218]
[1752226845259,1.2652124,118740.0,118730.0,0.3608]
[1752226845661,0.84744627,118740.0,118730.0,0.3608]
[1752226845861,0.84744627,118740.0,118730.0,0.3916]
[1752226846464,0.84744627,118740.0,118730.0,0.3608]
[1752226846663,0.1683904,118730.0,118720.0,0.66946906]
[1752226847260,0.1683904,118730.0,118720.0,0.30866906]
[1752226847462,0.97785653,118730.0,118720.0,0.07171702]
[1752226847656,1.00885653,118730.0,118720.0,0.01131702]
[1752226849060,1.17731253,118730.0,118720.0,0.01131702]
[1752226849268,0.1684472,118690.0,118680.0,0.57304633]
[1752226849468,0.1684472,118690.0,118680.0,0.39368513]
[1752226849766,0.1685039,118650.0,118640.0,0.38475755]
[1752226849970,0.5293039,118650.0,118640.0,0.07932574]
[1752226850163,0.5293039,118650.0,118640.0,0.05705389]
[1752226850363,0.5293039,118650.0,118640.0,0.41785389]
[1752226850364,0.1685039,118650.0,118640.0,0.41785389]
[1752226850565,0.1685039,118650.0,118640.0,0.58637199]
[1752226850865,0.01627607,118660.0,118650.0,0.1685039]
[1752226851067,0.8280804,118670.0,118660.0,0.1684897]
[1752226851265,0.94308855,118670.0,118660.0,0.3845241]
[1752226851567,0.67642641,118670.0,118660.0,0.55301509]
[1752226851871,0.84490191,118670.0,118660.0,0.5604897]
[1752226852071,0.84490191,118670.0,118660.0,0.392]
[1752226852260,0.67642641,118670.0,118660.0,0.97825583]
[1752226852461,0.1684707,118680.0,118660.0,0.6447213]
[1752226852664,0.8744669,118680.0,118670.0,0.0308]
[1752226852973,0.8327907,118680.0,118670.0,0.97784163]
[1752226853169,0.8328707,118680.0,118670.0,0.97784163]
[1752226853469,0.2125688,118690.0,118680.0,0.1684613]
[1752226853670,0.002,118690.0,118680.0,0.97782743]
[1752226854568,0.1704471,118690.0,118680.0,0.3916]
[1752226854771,0.8356471,118690.0,118680.0,0.3916]
[1752226854972,1.25341323,118690.0,118680.0,0.3916]
[1752226855171,1.28501323,118690.0,118680.0,0.3916]
[1752226855372,0.8672471,118690.0,118680.0,0.3916]
[1752226855564,0.8672471,118690.0,118680.0,0.0308]
[1752226855768,0.1684897,118660.0,118650.0,0.3608]
[1752226855972,0.8338097,118660.0,118650.0,0.3608]
[1752226856172,0.1685039,118650.0,118640.0,0.01931783]
[1752226856378,0.58627003,118650.0,118640.0,0.01931783]
[1752226856572,0.94707003,118650.0,118640.0,0.01931783]
[1752226856772,0.5609039,118650.0,118640.0,0.01931783]
[1752226857073,0.2001039,118650.0,118640.0,0.0016857]
[1752226857274,0.5609039,118650.0,118640.0,0.0016857]
[1752226857475,0.5938039,118650.0,118640.0,0.0016857]
[1752226858173,0.97259222,118650.0,118640.0,0.0016857]
[1752226859273,0.5938039,118650.0,118640.0,0.0016857]
[1752226859464,2.13779222,118650.0,118640.0,0.0016857]
[1752226859670,1.7590039,118650.0,118640.0,0.0016857]
[1752226859865,2.13779222,118650.0,118640.0,0.0016857]
[1752226860277,0.0421332,118630.0,118600.0,0.36248627]
[1752226860472,0.1685607,118610.0,118600.0,0.56195977]
[1752226860669,0.18463737,118610.0,118600.0,0.56195977]
[1752226860865,0.04515418,118610.0,118600.0,0.82688051]
[1752226861071,0.78944946,118610.0,118600.0,0.82688051]
[1752226861266,0.71403418,118610.0,118600.0,0.44809219]
[1752226861971,0.04497095,118610.0,118600.0,0.44809219]
[1752226862177,0.78906623,118610.0,118600.0,0.44809219]
[1752226862471,0.88221165,118610.0,118600.0,0.44809219]
[1752226862669,0.88421165,118610.0,118600.0,0.44809219]
[1752226862867,0.88421165,118610.0,118600.0,0.44809369]
[1752226863067,0.98949552,118610.0,118600.0,0.199475]
[1752226863269,0.98949552,118610.0,118580.0,0.5293988]
[1752226863270,0.1685892,118590.0,118580.0,0.5293988]
[1752226863480,0.19766671,118590.0,118580.0,0.1995988]